[Event "Titled Tuesday Blitz July 26 Late 2022"]
[White "D`Arruda, Ricardo D."]
[Black "Peng, David Yu"]
[WhiteFideId "100692"]
[BlackFideId "2605376"]
[WhiteElo "2416"]
[BlackElo "2166"]
[Result "0-1"]
[Round "03"]
[TimeControl "180+1"]
[Date "2022.07.27"]
[WhiteClock "0:00:11"]
[BlackClock "0:00:17"]

1. d4 {[%clk 0:02:56]}  Nf6 {[%clk 0:02:59]} 2. Nf3 {[%clk 0:02:55]}  d5 {[%clk 0:02:59]} 3. g3 {[%clk 0:02:54]}  c6 {[%clk 0:02:56]} 4. Bg2 {[%clk 0:02:54]}  Bf5 {[%clk 0:02:56]} 5. O-O {[%clk 0:02:53]}  e6 {[%clk 0:02:56]} 6. c4 {[%clk 0:02:50]}  Nbd7 {[%clk 0:02:56]} 7. Nc3 {[%clk 0:02:50]}  h6 {[%clk 0:02:55]} 8. b3 {[%clk 0:02:46]}  Bb4 {[%clk 0:02:51]} 9. Bb2 {[%clk 0:02:46]}  O-O {[%clk 0:02:47]} 10. a3 {[%clk 0:02:45]}  Bd6 {[%clk 0:02:42]} 11. Nd2 {[%clk 0:02:36]}  Rc8 {[%clk 0:02:08]} 12. e4 {[%clk 0:02:35]}  dxe4 {[%clk 0:02:09]} 13. Ndxe4 {[%clk 0:02:34]}  Nxe4 {[%clk 0:02:06]} 14. Nxe4 {[%clk 0:02:35]}  Be7 {[%clk 0:02:06]} 15. Qe2 {[%clk 0:02:27]}  Nf6 {[%clk 0:02:04]} 16. Rfd1 {[%clk 0:02:10]}  Re8 {[%clk 0:01:53]} 17. Bc3 {[%clk 0:01:58]}  Nxe4 {[%clk 0:01:40]} 18. Bxe4 {[%clk 0:01:58]}  Bxe4 {[%clk 0:01:41]} 19. Qxe4 {[%clk 0:01:58]}  Bf6 {[%clk 0:01:41]} 20. Rac1 {[%clk 0:01:54]}  Qd7 {[%clk 0:01:34]} 21. Rd3 {[%clk 0:01:40]}  Rcd8 {[%clk 0:01:27]} 22. Rcd1 {[%clk 0:01:40]}  Qe7 {[%clk 0:01:15]} 23. b4 {[%clk 0:01:35]}  Qd7 {[%clk 0:01:04]} 24. Be1 {[%clk 0:01:18]}  b5 {[%clk 0:01:03]} 25. cxb5 {[%clk 0:01:16]}  cxb5 {[%clk 0:01:04]} 26. Kg2 {[%clk 0:01:11]}  Qd5 {[%clk 0:01:04]} 27. f3 {[%clk 0:01:03]}  Rd7 {[%clk 0:01:00]} 28. Bf2 {[%clk 0:01:03]}  Rc8 {[%clk 0:00:59]} 29. Qe3 {[%clk 0:00:57]}  Rc4 {[%clk 0:00:56]} 30. Qe4 {[%clk 0:00:48]}  a6 {[%clk 0:00:51]} 31. h3 {[%clk 0:00:44]}  h5 {[%clk 0:00:50]} 32. h4 {[%clk 0:00:44]}  g6 {[%clk 0:00:47]} 33. Be3 {[%clk 0:00:42]}  Kg7 {[%clk 0:00:47]} 34. Bf2 {[%clk 0:00:42]}  Rc2 {[%clk 0:00:40]} 35. Kg1 {[%clk 0:00:41]}  Qa2 {[%clk 0:00:38]} 36. Qe3 {[%clk 0:00:39]}  Rd5 {[%clk 0:00:36]} 37. R3d2 {[%clk 0:00:39]}  Rxd2 {[%clk 0:00:30]} 38. Rxd2 {[%clk 0:00:40]}  Qb1+ {[%clk 0:00:28]} 39. Kg2 {[%clk 0:00:40]}  Qf5 {[%clk 0:00:26]} 40. Qe4 {[%clk 0:00:39]}  Rd7 {[%clk 0:00:24]} 41. Be3 {[%clk 0:00:35]}  e5 {[%clk 0:00:20]} 42. Qxf5 {[%clk 0:00:33]}  gxf5 {[%clk 0:00:21]} 43. dxe5 {[%clk 0:00:33]}  Rxd2+ {[%clk 0:00:22]} 44. Bxd2 {[%clk 0:00:33]}  Bxe5 {[%clk 0:00:22]} 45. Bc1 {[%clk 0:00:30]}  Kf6 {[%clk 0:00:23]} 46. Kh3 {[%clk 0:00:25]}  Bc3 {[%clk 0:00:22]} 47. g4 {[%clk 0:00:25]}  Kg6 {[%clk 0:00:19]} 48. Kg3 {[%clk 0:00:21]}  fxg4 {[%clk 0:00:19]} 49. fxg4 {[%clk 0:00:22]}  f5 {[%clk 0:00:20]} 50. gxf5+ {[%clk 0:00:18]}  Kxf5 {[%clk 0:00:21]} 51. Kf3 {[%clk 0:00:18]}  Bf6 {[%clk 0:00:19]} 52. Kg3 {[%clk 0:00:18]}  Be5+ {[%clk 0:00:19]} 53. Kf3 {[%clk 0:00:17]}  Bf6 {[%clk 0:00:18]} 54. Kg3 {[%clk 0:00:17]}  Ke4 {[%clk 0:00:18]} 55. Kf2 {[%clk 0:00:13]}  Bxh4+ {[%clk 0:00:18]} 56. Ke2 {[%clk 0:00:13]}  Bf6 {[%clk 0:00:18]} 57. Kf2 {[%clk 0:00:12]}  Kd3 {[%clk 0:00:17]} 58. Kg3 {[%clk 0:00:12]}  Kc2 {[%clk 0:00:18]} 59. Bf4 {[%clk 0:00:11]}  Kb3 {[%clk 0:00:18]} 60. Bc1 {[%clk 0:00:11]}  Bb2 {[%clk 0:00:16]} 61. Bg5 {[%clk 0:00:10]}  Bxa3 {[%clk 0:00:16]} 62. Kh4 {[%clk 0:00:11]}  Bxb4 {[%clk 0:00:17]} 63. Kxh5 {[%clk 0:00:11]}  Bc3 {[%clk 0:00:17]} 0-1


[Site "https://www.chess.com"]

[Event "Titled Tuesday Blitz July 26 Late 2022"]
[White "Di Nicolantonio, Lucas"]
[Black "Sjugirov, Sanan"]
[WhiteFideId "680460"]
[BlackFideId "4189302"]
[WhiteElo "2381"]
[BlackElo "2609"]
[Result "0-1"]
[Round "03"]
[TimeControl "180+1"]
[Date "2022.07.27"]
[WhiteClock "0:00:05"]
[BlackClock "0:01:05"]

1. d4 {[%clk 0:03:00]}  Nf6 {[%clk 0:02:59]} 2. Bg5 {[%clk 0:03:01]}  d5 {[%clk 0:02:59]} 3. Bxf6 {[%clk 0:03:01]}  exf6 {[%clk 0:02:59]} 4. e3 {[%clk 0:03:01]}  c6 {[%clk 0:02:59]} 5. g3 {[%clk 0:03:01]}  Be6 {[%clk 0:02:58]} 6. Bg2 {[%clk 0:03:01]}  Nd7 {[%clk 0:02:58]} 7. Ne2 {[%clk 0:03:01]}  Bd6 {[%clk 0:02:56]} 8. Qd3 {[%clk 0:02:59]}  f5 {[%clk 0:02:55]} 9. Nd2 {[%clk 0:02:58]}  Nf6 {[%clk 0:02:44]} 10. c4 {[%clk 0:02:51]}  dxc4 {[%clk 0:02:38]} 11. Nxc4 {[%clk 0:02:51]}  Bb4+ {[%clk 0:02:33]} 12. Nc3 {[%clk 0:02:51]}  h5 {[%clk 0:02:29]} 13. a3 {[%clk 0:02:47]}  Be7 {[%clk 0:02:29]} 14. h4 {[%clk 0:02:43]}  O-O {[%clk 0:02:28]} 15. O-O {[%clk 0:02:40]}  Ng4 {[%clk 0:02:27]} 16. f3 {[%clk 0:02:14]}  Nf6 {[%clk 0:02:26]} 17. Ne5 {[%clk 0:02:10]}  Bd6 {[%clk 0:02:25]} 18. Rfd1 {[%clk 0:02:05]}  Qe7 {[%clk 0:02:24]} 19. Rac1 {[%clk 0:02:01]}  Rad8 {[%clk 0:02:24]} 20. Qe2 {[%clk 0:02:00]}  Bb3 {[%clk 0:02:21]} 21. f4 {[%clk 0:01:36]}  Bxd1 {[%clk 0:02:21]} 22. Rxd1 {[%clk 0:01:36]}  Ng4 {[%clk 0:02:21]} 23. Bf3 {[%clk 0:01:28]}  Rfe8 {[%clk 0:02:20]} 24. Re1 {[%clk 0:01:21]}  f6 {[%clk 0:02:17]} 25. Qc4+ {[%clk 0:01:11]}  Kh7 {[%clk 0:02:14]} 26. Nxg4 {[%clk 0:00:50]}  hxg4 {[%clk 0:02:13]} 27. Bd1 {[%clk 0:00:49]}  g6 {[%clk 0:02:09]} 28. Bc2 {[%clk 0:00:49]}  Qe6 {[%clk 0:02:03]} 29. Qf1 {[%clk 0:00:45]}  Kh6 {[%clk 0:01:58]} 30. Qg2 {[%clk 0:00:43]}  Kh5 {[%clk 0:01:55]} 31. e4 {[%clk 0:00:38]}  Qc4 {[%clk 0:01:53]} 32. Rd1 {[%clk 0:00:32]}  Bxa3 {[%clk 0:01:51]} 33. exf5 {[%clk 0:00:23]}  Rxd4 {[%clk 0:01:49]} 34. fxg6 {[%clk 0:00:22]}  Rxd1+ {[%clk 0:01:46]} 35. Bxd1 {[%clk 0:00:23]}  Bc5+ {[%clk 0:01:46]} 36. Kh2 {[%clk 0:00:22]}  Kxg6 {[%clk 0:01:38]} 37. Bxg4 {[%clk 0:00:21]}  Kg7 {[%clk 0:01:35]} 38. Bh5 {[%clk 0:00:18]}  Re3 {[%clk 0:01:25]} 39. Qh3 {[%clk 0:00:16]}  Qe6 {[%clk 0:01:24]} 40. Bg4 {[%clk 0:00:15]}  Qd6 {[%clk 0:01:24]} 41. Be2 {[%clk 0:00:13]}  Qe6 {[%clk 0:01:12]} 42. Bg4 {[%clk 0:00:12]}  Qb3 {[%clk 0:01:13]} 43. Qg2 {[%clk 0:00:07]}  Bd4 {[%clk 0:01:07]} 44. Bd1 {[%clk 0:00:07]}  Qe6 {[%clk 0:01:05]} 45. Bc2 {[%clk 0:00:05]}  Bxc3 {[%clk 0:01:05]} 0-1


[Site "https://www.chess.com"]

[Event "Titled Tuesday Blitz July 26 Late 2022"]
[White "Floresvillar Gonzalez, Luis Migu"]
[Black "Mica, Marek"]
[WhiteFideId "5100542"]
[BlackFideId "382884"]
[WhiteElo "2040"]
[BlackElo "2100"]
[Result "1-0"]
[Round "03"]
[TimeControl "180+1"]
[Date "2022.07.27"]
[WhiteClock "0:00:05"]
[BlackClock "0:00:02"]

1. d4 {[%clk 0:03:00]}  Nf6 {[%clk 0:02:53]} 2. c3 {[%clk 0:02:59]}  d5 {[%clk 0:02:51]} 3. Bg5 {[%clk 0:02:58]}  Ne4 {[%clk 0:02:49]} 4. h4 {[%clk 0:02:58]}  h6 {[%clk 0:02:47]} 5. Bf4 {[%clk 0:02:57]}  e6 {[%clk 0:02:46]} 6. Nd2 {[%clk 0:02:57]}  Bd6 {[%clk 0:02:45]} 7. Bxd6 {[%clk 0:02:55]}  Nxd6 {[%clk 0:02:46]} 8. g3 {[%clk 0:02:52]}  Nd7 {[%clk 0:02:44]} 9. f4 {[%clk 0:02:47]}  b6 {[%clk 0:02:43]} 10. Bg2 {[%clk 0:02:45]}  Bb7 {[%clk 0:02:43]} 11. Ngf3 {[%clk 0:02:43]}  c5 {[%clk 0:02:37]} 12. e3 {[%clk 0:02:41]}  Nf6 {[%clk 0:02:36]} 13. Ne5 {[%clk 0:02:41]}  O-O {[%clk 0:02:25]} 14. O-O {[%clk 0:02:37]}  Rc8 {[%clk 0:02:17]} 15. Qe2 {[%clk 0:02:33]}  b5 {[%clk 0:02:14]} 16. a3 {[%clk 0:02:19]}  a5 {[%clk 0:02:12]} 17. g4 {[%clk 0:01:46]}  cxd4 {[%clk 0:02:07]} 18. exd4 {[%clk 0:01:41]}  b4 {[%clk 0:02:00]} 19. axb4 {[%clk 0:01:41]}  axb4 {[%clk 0:02:01]} 20. g5 {[%clk 0:01:40]}  hxg5 {[%clk 0:01:55]} 21. hxg5 {[%clk 0:01:40]}  Nfe4 {[%clk 0:01:55]} 22. Nxe4 {[%clk 0:01:30]}  Nxe4 {[%clk 0:01:56]} 23. Bxe4 {[%clk 0:01:26]}  dxe4 {[%clk 0:01:57]} 24. Ra7 {[%clk 0:01:14]}  Qb6 {[%clk 0:01:52]} 25. Rfa1 {[%clk 0:01:04]}  bxc3 {[%clk 0:01:50]} 26. bxc3 {[%clk 0:00:59]}  Rxc3 {[%clk 0:01:46]} 27. Qd2 {[%clk 0:00:55]}  Rc7 {[%clk 0:01:30]} 28. g6 {[%clk 0:00:50]}  fxg6 {[%clk 0:01:26]} 29. Nxg6 {[%clk 0:00:49]}  Rd8 {[%clk 0:01:26]} 30. R7a4 {[%clk 0:00:46]}  e5 {[%clk 0:01:12]} 31. Nxe5 {[%clk 0:00:42]}  Qe6 {[%clk 0:01:06]} 32. Qe3 {[%clk 0:00:36]}  Rdc8 {[%clk 0:00:43]} 33. R4a3 {[%clk 0:00:25]}  Qh6 {[%clk 0:00:36]} 34. Qb3+ {[%clk 0:00:23]}  Kf8 {[%clk 0:00:25]} 35. Qb4+ {[%clk 0:00:19]}  Kg8 {[%clk 0:00:20]} 36. Qb3+ {[%clk 0:00:18]}  Kf8 {[%clk 0:00:20]} 37. Qb4+ {[%clk 0:00:18]}  Re7 {[%clk 0:00:19]} 38. Rg3 {[%clk 0:00:13]}  Qh4 {[%clk 0:00:15]} 39. Ng6+ {[%clk 0:00:12]}  Kg8 {[%clk 0:00:13]} 40. Nxh4 {[%clk 0:00:12]}  Rec7 {[%clk 0:00:12]} 41. Qb3+ {[%clk 0:00:10]}  Kh7 {[%clk 0:00:10]} 42. Rh3 {[%clk 0:00:09]}  g5 {[%clk 0:00:09]} 43. Nf5+ {[%clk 0:00:08]}  Kg6 {[%clk 0:00:08]} 44. fxg5 {[%clk 0:00:06]}  Kxf5 {[%clk 0:00:08]} 45. Rf1+ {[%clk 0:00:06]}  Kg6 {[%clk 0:00:06]} 46. Qe6+ {[%clk 0:00:06]}  Kg7 {[%clk 0:00:05]} 47. Rh6 {[%clk 0:00:05]}  Rc6 {[%clk 0:00:02]} 48. Qe7+ {[%clk 0:00:05]}  Kg8 {[%clk 0:00:02]} 49. Qh7# {[%clk 0:00:05]} 1-0


[Site "https://www.chess.com"]

[Event "Titled Tuesday Blitz July 26 Late 2022"]
[White "Gallo Garcia, Kemel Antonio"]
[Black "Kamsky, Gata"]
[WhiteFideId "3523896"]
[BlackFideId "2000024"]
[WhiteElo "2359"]
[BlackElo "2645"]
[Result "0-1"]
[Round "03"]
[TimeControl "180+1"]
[Date "2022.07.26"]
[WhiteClock "0:00:01"]
[BlackClock "0:00:48"]

1. e4 {[%clk 0:03:00]}  e5 {[%clk 0:02:58]} 2. Nf3 {[%clk 0:03:00]}  Nc6 {[%clk 0:02:57]} 3. Bb5 {[%clk 0:03:00]}  a6 {[%clk 0:02:56]} 4. Ba4 {[%clk 0:03:01]}  Nf6 {[%clk 0:02:56]} 5. O-O {[%clk 0:03:01]}  Be7 {[%clk 0:02:57]} 6. Re1 {[%clk 0:03:01]}  b5 {[%clk 0:02:57]} 7. Bb3 {[%clk 0:03:01]}  d6 {[%clk 0:02:58]} 8. c3 {[%clk 0:03:00]}  O-O {[%clk 0:02:58]} 9. h3 {[%clk 0:03:01]}  Nb8 {[%clk 0:02:58]} 10. d4 {[%clk 0:03:00]}  Nbd7 {[%clk 0:02:58]} 11. a4 {[%clk 0:02:57]}  Bb7 {[%clk 0:02:33]} 12. Nbd2 {[%clk 0:02:57]}  c5 {[%clk 0:02:25]} 13. d5 {[%clk 0:02:55]}  c4 {[%clk 0:02:24]} 14. Bc2 {[%clk 0:02:54]}  Nc5 {[%clk 0:02:25]} 15. Nf1 {[%clk 0:02:53]}  Nfd7 {[%clk 0:02:18]} 16. Ng3 {[%clk 0:02:51]}  g6 {[%clk 0:02:18]} 17. Bh6 {[%clk 0:02:50]}  Re8 {[%clk 0:02:17]} 18. Qd2 {[%clk 0:02:47]}  Nb6 {[%clk 0:02:17]} 19. Rf1 {[%clk 0:02:14]}  Nbxa4 {[%clk 0:02:15]} 20. Bxa4 {[%clk 0:02:15]}  Nxa4 {[%clk 0:02:14]} 21. Nh2 {[%clk 0:02:15]}  Bh4 {[%clk 0:02:09]} 22. Nf3 {[%clk 0:02:04]}  Bf6 {[%clk 0:02:08]} 23. Nh2 {[%clk 0:02:03]}  Nc5 {[%clk 0:01:59]} 24. Qe3 {[%clk 0:01:53]}  Bh4 {[%clk 0:01:44]} 25. Nf3 {[%clk 0:01:47]}  Be7 {[%clk 0:01:43]} 26. Nh2 {[%clk 0:01:46]}  Nd7 {[%clk 0:01:42]} 27. Kh1 {[%clk 0:01:30]}  Bf8 {[%clk 0:01:38]} 28. Ng4 {[%clk 0:01:24]}  Nf6 {[%clk 0:01:25]} 29. Bg5 {[%clk 0:00:49]}  Nxg4 {[%clk 0:01:24]} 30. hxg4 {[%clk 0:00:50]}  f6 {[%clk 0:01:23]} 31. Bh6 {[%clk 0:00:50]}  Bc8 {[%clk 0:01:20]} 32. f3 {[%clk 0:00:27]}  f5 {[%clk 0:01:13]} 33. Bxf8 {[%clk 0:00:10]}  Qh4+ {[%clk 0:01:07]} 34. Kg1 {[%clk 0:00:10]}  Rxf8 {[%clk 0:01:08]} 35. Ne2 {[%clk 0:00:05]}  fxg4 {[%clk 0:01:08]} 36. fxg4 {[%clk 0:00:06]}  Bxg4 {[%clk 0:01:06]} 37. Rxf8+ {[%clk 0:00:04]}  Rxf8 {[%clk 0:01:06]} 38. Ng3 {[%clk 0:00:02]}  Bc8 {[%clk 0:01:05]} 39. Rf1 {[%clk 0:00:01]}  Rf4 {[%clk 0:00:48]} 0-1


[Site "https://www.chess.com"]

[Event "Titled Tuesday Blitz July 26 Late 2022"]
[White "Grigoriants, Sergey"]
[Black "Domingo Nunez, Ruben"]
[WhiteFideId "4130804"]
[BlackFideId "22245570"]
[WhiteElo "2502"]
[BlackElo "2373"]
[Result "1/2-1/2"]
[Round "03"]
[TimeControl "180+1"]
[Date "2022.07.26"]
[WhiteClock "0:00:29"]
[BlackClock "0:00:09"]

1. d4 {[%clk 0:03:00]}  g6 {[%clk 0:02:59]} 2. e4 {[%clk 0:02:59]}  Bg7 {[%clk 0:02:59]} 3. Nc3 {[%clk 0:02:59]}  c6 {[%clk 0:02:59]} 4. f4 {[%clk 0:02:59]}  d5 {[%clk 0:02:59]} 5. e5 {[%clk 0:03:00]}  f6 {[%clk 0:03:00]} 6. Nf3 {[%clk 0:02:59]}  Nh6 {[%clk 0:02:59]} 7. Bd3 {[%clk 0:02:56]}  fxe5 {[%clk 0:02:57]} 8. fxe5 {[%clk 0:02:52]}  Bg4 {[%clk 0:02:56]} 9. Be3 {[%clk 0:02:51]}  O-O {[%clk 0:02:56]} 10. Qe2 {[%clk 0:02:47]}  c5 {[%clk 0:02:51]} 11. dxc5 {[%clk 0:02:26]}  e6 {[%clk 0:02:43]} 12. O-O-O {[%clk 0:02:22]}  Nc6 {[%clk 0:02:43]} 13. Nb5 {[%clk 0:02:07]}  Nf7 {[%clk 0:01:53]} 14. Nbd4 {[%clk 0:01:49]}  Nfxe5 {[%clk 0:01:52]} 15. Nxc6 {[%clk 0:01:36]}  bxc6 {[%clk 0:01:40]} 16. Rhf1 {[%clk 0:01:35]}  Rb8 {[%clk 0:01:24]} 17. c3 {[%clk 0:01:28]}  Qa5 {[%clk 0:01:23]} 18. a3 {[%clk 0:01:25]}  Nxd3+ {[%clk 0:01:07]} 19. Rxd3 {[%clk 0:01:25]}  e5 {[%clk 0:01:06]} 20. h3 {[%clk 0:01:21]}  e4 {[%clk 0:00:53]} 21. hxg4 {[%clk 0:01:19]}  exd3 {[%clk 0:00:53]} 22. Qxd3 {[%clk 0:01:20]}  Qa4 {[%clk 0:00:46]} 23. Bd4 {[%clk 0:01:20]}  Rbe8 {[%clk 0:00:43]} 24. Bxg7 {[%clk 0:01:09]}  Kxg7 {[%clk 0:00:43]} 25. Nd4 {[%clk 0:01:09]}  Rxf1+ {[%clk 0:00:29]} 26. Qxf1 {[%clk 0:01:10]}  Qa5 {[%clk 0:00:30]} 27. g5 {[%clk 0:01:07]}  Qxc5 {[%clk 0:00:30]} 28. Qf6+ {[%clk 0:01:06]}  Kg8 {[%clk 0:00:31]} 29. g4 {[%clk 0:00:53]}  Qe7 {[%clk 0:00:20]} 30. Qxc6 {[%clk 0:00:51]}  Qe1+ {[%clk 0:00:14]} 31. Kc2 {[%clk 0:00:51]}  Qe4+ {[%clk 0:00:10]} 32. Kb3 {[%clk 0:00:46]}  Rb8+ {[%clk 0:00:10]} 33. Ka2 {[%clk 0:00:46]}  Qe5 {[%clk 0:00:09]} 34. Qd7 {[%clk 0:00:38]}  Re8 {[%clk 0:00:08]} 35. a4 {[%clk 0:00:32]}  Re7 {[%clk 0:00:08]} 36. Qc8+ {[%clk 0:00:29]}  Re8 {[%clk 0:00:08]} 37. Qd7 {[%clk 0:00:29]}  Re7 {[%clk 0:00:09]} 38. Qc8+ {[%clk 0:00:29]}  Re8 {[%clk 0:00:09]} 39. Qd7 {[%clk 0:00:29]} 1/2-1/2


[Site "https://www.chess.com"]

[Event "Titled Tuesday Blitz July 26 Late 2022"]
[White "Grigorov, Grigor"]
[Black "Daggupati, Balaji"]
[WhiteFideId "2907313"]
[BlackFideId "2090759"]
[WhiteElo "2510"]
[BlackElo "2704"]
[Result "1-0"]
[Round "03"]
[TimeControl "180+1"]
[Date "2022.07.26"]
[WhiteClock "0:00:55"]
[BlackClock "0:00:56"]

1. d4 {[%clk 0:03:00]}  d5 {[%clk 0:02:58]} 2. c4 {[%clk 0:03:00]}  dxc4 {[%clk 0:02:59]} 3. e3 {[%clk 0:02:59]}  e5 {[%clk 0:02:57]} 4. Bxc4 {[%clk 0:02:59]}  exd4 {[%clk 0:02:58]} 5. exd4 {[%clk 0:03:00]}  Nf6 {[%clk 0:02:58]} 6. Qe2+ {[%clk 0:02:53]}  Qe7 {[%clk 0:02:56]} 7. Qxe7+ {[%clk 0:02:49]}  Bxe7 {[%clk 0:02:57]} 8. Nf3 {[%clk 0:02:49]}  O-O {[%clk 0:02:56]} 9. O-O {[%clk 0:02:49]}  Nc6 {[%clk 0:02:56]} 10. h3 {[%clk 0:02:42]}  Bf5 {[%clk 0:02:43]} 11. Nc3 {[%clk 0:02:42]}  Rad8 {[%clk 0:02:43]} 12. Re1 {[%clk 0:02:32]}  Rfe8 {[%clk 0:02:37]} 13. Be3 {[%clk 0:02:20]}  Nb4 {[%clk 0:02:22]} 14. Rad1 {[%clk 0:02:08]}  Nc2 {[%clk 0:02:20]} 15. Re2 {[%clk 0:02:07]}  Nxe3 {[%clk 0:02:21]} 16. Rxe3 {[%clk 0:01:58]}  Bd6 {[%clk 0:02:08]} 17. Ne5 {[%clk 0:01:55]}  Bxe5 {[%clk 0:02:06]} 18. Rxe5 {[%clk 0:01:49]}  Bc2 {[%clk 0:01:42]} 19. Rde1 {[%clk 0:01:43]}  Kf8 {[%clk 0:01:38]} 20. Nb5 {[%clk 0:01:29]}  c6 {[%clk 0:01:35]} 21. Nc7 {[%clk 0:01:29]}  Rxe5 {[%clk 0:01:33]} 22. dxe5 {[%clk 0:01:30]}  Ne4 {[%clk 0:01:26]} 23. f3 {[%clk 0:01:06]}  Nd2 {[%clk 0:01:20]} 24. e6 {[%clk 0:01:03]}  Re8 {[%clk 0:01:00]} 25. Nxe8 {[%clk 0:01:01]}  Nxc4 {[%clk 0:01:01]} 26. Nxg7 {[%clk 0:00:55]}  Kxg7 {[%clk 0:00:54]} 27. e7 {[%clk 0:00:55]}  Nd6 {[%clk 0:00:55]} 28. e8=Q {[%clk 0:00:55]}  Nxe8 {[%clk 0:00:56]} 29. Rxe8 {[%clk 0:00:55]} 1-0


[Site "https://www.chess.com"]

[Event "Titled Tuesday Blitz July 26 Late 2022"]
[White "Grischuk, Alexander"]
[Black "Meshkovs, Nikita"]
[WhiteFideId "4126025"]
[BlackFideId "11602740"]
[WhiteElo "2762"]
[BlackElo "2506"]
[Result "1-0"]
[Round "03"]
[TimeControl "180+1"]
[Date "2022.07.26"]
[WhiteClock "0:00:07"]
[BlackClock "0:00:02"]

1. d4 {[%clk 0:03:00]}  Nf6 {[%clk 0:02:59]} 2. c4 {[%clk 0:03:00]}  e6 {[%clk 0:02:59]} 3. Nc3 {[%clk 0:03:00]}  Bb4 {[%clk 0:03:00]} 4. e3 {[%clk 0:03:00]}  d5 {[%clk 0:02:58]} 5. a3 {[%clk 0:02:55]}  Bxc3+ {[%clk 0:02:58]} 6. bxc3 {[%clk 0:02:56]}  c5 {[%clk 0:02:55]} 7. cxd5 {[%clk 0:02:55]}  exd5 {[%clk 0:02:55]} 8. Bd3 {[%clk 0:02:55]}  O-O {[%clk 0:02:53]} 9. Ne2 {[%clk 0:02:56]}  b6 {[%clk 0:02:51]} 10. O-O {[%clk 0:02:55]}  Ba6 {[%clk 0:02:50]} 11. Bxa6 {[%clk 0:02:50]}  Nxa6 {[%clk 0:02:51]} 12. Qd3 {[%clk 0:02:51]}  Qc8 {[%clk 0:02:51]} 13. f3 {[%clk 0:02:49]}  Re8 {[%clk 0:02:50]} 14. Ng3 {[%clk 0:02:48]}  Nc7 {[%clk 0:02:47]} 15. e4 {[%clk 0:02:36]}  cxd4 {[%clk 0:02:33]} 16. cxd4 {[%clk 0:02:25]}  Qa6 {[%clk 0:02:32]} 17. Qxa6 {[%clk 0:02:18]}  Nxa6 {[%clk 0:02:33]} 18. e5 {[%clk 0:02:19]}  Nd7 {[%clk 0:02:33]} 19. Nf5 {[%clk 0:02:20]}  Nc7 {[%clk 0:02:22]} 20. f4 {[%clk 0:02:11]}  f6 {[%clk 0:01:54]} 21. Bb2 {[%clk 0:01:50]}  g6 {[%clk 0:01:37]} 22. Nd6 {[%clk 0:01:20]}  Re7 {[%clk 0:01:37]} 23. Rac1 {[%clk 0:01:13]}  Ne8 {[%clk 0:01:33]} 24. Nb5 {[%clk 0:01:09]}  Nf8 {[%clk 0:01:16]} 25. f5 {[%clk 0:00:32]}  gxf5 {[%clk 0:01:16]} 26. Rxf5 {[%clk 0:00:33]}  fxe5 {[%clk 0:01:16]} 27. dxe5 {[%clk 0:00:34]}  Rd8 {[%clk 0:01:12]} 28. Nd4 {[%clk 0:00:31]}  Rc7 {[%clk 0:01:06]} 29. Rcf1 {[%clk 0:00:28]}  Ng7 {[%clk 0:01:06]} 30. Rg5 {[%clk 0:00:23]}  h6 {[%clk 0:01:04]} 31. Rg3 {[%clk 0:00:20]}  Kh7 {[%clk 0:01:03]} 32. Rf6 {[%clk 0:00:17]}  Re8 {[%clk 0:01:01]} 33. Nb5 {[%clk 0:00:05]}  Rc2 {[%clk 0:01:01]} 34. Nd6 {[%clk 0:00:04]}  Rb8 {[%clk 0:00:28]} 35. Bd4 {[%clk 0:00:03]}  Nfe6 {[%clk 0:00:27]} 36. Be3 {[%clk 0:00:03]}  h5 {[%clk 0:00:20]} 37. Rh6+ {[%clk 0:00:03]}  Kg8 {[%clk 0:00:20]} 38. Rxe6 {[%clk 0:00:04]}  h4 {[%clk 0:00:19]} 39. Rg4 {[%clk 0:00:04]}  Rf8 {[%clk 0:00:14]} 40. Reg6 {[%clk 0:00:02]}  Re2 {[%clk 0:00:11]} 41. Rxg7+ {[%clk 0:00:03]}  Kh8 {[%clk 0:00:12]} 42. h3 {[%clk 0:00:03]}  Re1+ {[%clk 0:00:10]} 43. Kh2 {[%clk 0:00:03]}  Rxe3 {[%clk 0:00:11]} 44. Nf7+ {[%clk 0:00:03]}  Rxf7 {[%clk 0:00:10]} 45. Rxf7 {[%clk 0:00:04]}  Rxe5 {[%clk 0:00:10]} 46. Rxa7 {[%clk 0:00:04]}  d4 {[%clk 0:00:09]} 47. Rxd4 {[%clk 0:00:04]}  Re8 {[%clk 0:00:09]} 48. Rxh4+ {[%clk 0:00:04]}  Kg8 {[%clk 0:00:09]} 49. Rg4+ {[%clk 0:00:05]}  Kh8 {[%clk 0:00:10]} 50. Rh4+ {[%clk 0:00:06]}  Kg8 {[%clk 0:00:10]} 51. a4 {[%clk 0:00:06]}  b5 {[%clk 0:00:09]} 52. Rg4+ {[%clk 0:00:07]}  Kh8 {[%clk 0:00:09]} 53. Rh4+ {[%clk 0:00:08]}  Kg8 {[%clk 0:00:09]} 54. axb5 {[%clk 0:00:08]}  Re2 {[%clk 0:00:10]} 55. Rg4+ {[%clk 0:00:08]}  Kh8 {[%clk 0:00:10]} 56. Rc4 {[%clk 0:00:08]}  Re8 {[%clk 0:00:09]} 57. b6 {[%clk 0:00:08]}  Rb8 {[%clk 0:00:06]} 58. Rd7 {[%clk 0:00:06]}  Kg8 {[%clk 0:00:02]} 59. b7 {[%clk 0:00:07]}  Kf8 {[%clk 0:00:02]} 60. Rc8+ {[%clk 0:00:07]} 1-0


[Site "https://www.chess.com"]